fUST/lending_fUST_20240323
["ID","MTS","AMOUNT","RATE_DAILY","PERIOD"]
[320060699,1711125038833,-2143.18,0.00027045,2]
[320060700,1711125038842,-1038.41,0.00027045,2]
[320060701,1711125038851,-500.0,0.00027045,2]
[320060702,1711125038860,-500.0,0.00027045,2]
[320060703,1711125038869,-500.0,0.00027045,2]
[320060704,1711125038878,-500.0,0.00027045,2]
[320060705,1711125038887,-709.59,0.00027045,2]
[320060706,1711125038897,-501.60077712,0.00027045,2]
[320060707,1711125038906,-500.0,0.00027045,2]
[320060708,1711125038915,-4210.44,0.00027045,2]
[320060709,1711125038925,-500.0,0.00027045,2]
[320060710,1711125038934,-500.0,0.00027045,2]
[320060711,1711125038944,-500.0,0.00027045,2]
[320060713,1711125038954,-500.0,0.00027045,2]
[320060715,1711125038963,-500.0,0.00027045,2]
[320060717,1711125038972,-500.0,0.00027045,2]
[320060719,1711125038985,-31954.58,0.00027045,2]
[320060720,1711125038994,-500.0,0.00027045,2]
[320060721,1711125039003,-1492.33,0.00027045,2]
[320060722,1711125039012,-570.85928019,0.00027045,2]
[320060723,1711125039022,-22247.39,0.00027045,2]
[320060725,1711125039031,-1768.89,0.00027045,2]
[320060726,1711125039040,-1524.6,0.00027045,2]
[320060727,1711125039050,-500.0,0.00027045,2]
[320060729,1711125039059,-500.0,0.00027045,2]
[320060732,1711125039072,-7092.9,0.00027045,2]
[320060734,1711125039082,-500.0,0.00027045,2]
[320060736,1711125039091,-15615.48273726,0.00027046,3]
[320060737,1711125039101,-36062.26025553,0.00027046,2]
[320060738,1711125039110,-603.25250738,0.00027122,2]
[320060739,1711125039119,-500.0,0.00027145,2]
[320060740,1711125039130,-500.0,0.00027145,2]
[320060741,1711125039140,-500.0,0.00027145,2]
[320060743,1711125039150,-500.0,0.00027145,2]
[320060744,1711125039159,-500.0,0.00027145,2]
[320060745,1711125039169,-500.0,0.00027145,2]
[320060746,1711125039179,-500.0,0.00027145,2]
[320060748,1711125039189,-188.02131333,0.00027145,2]
[320060750,1711125039199,-500.0,0.00027145,2]
[320060751,1711125039209,-500.0,0.00027145,2]
[320060752,1711125039218,-500.0,0.00027145,30]
[320060753,1711125039234,-500.0,0.00027145,2]
[320060754,1711125039249,-500.43985307,0.00027145,2]
[320060755,1711125039259,-500.0,0.00027145,2]
[320060756,1711125039269,-500.0,0.00027145,2]
[320060757,1711125039280,-500.0,0.00027145,2]
[320060758,1711125039290,-500.0,0.00027145,2]
[320060759,1711125039300,-500.0,0.00027145,2]
[320060760,1711125039310,-500.0,0.00027145,2]
[320060761,1711125039321,-500.0,0.00027145,2]
[320060762,1711125039332,-209.97294759,0.00027145,2]
[320060763,1711125039344,-508.22981875,0.00027145,2]
[320060764,1711125039354,-500.0,0.00027145,2]
[320060765,1711125039365,-500.0,0.00027145,2]
[320060766,1711125039375,-500.0,0.00027145,2]
[320060767,1711125039386,-298.13990406,0.00027145,2]
[320060768,1711125039397,-500.0,0.00027145,2]
[320060769,1711125039407,-1938.61,0.00027145,2]
[320060770,1711125039417,-500.0,0.00027145,2]
[320060771,1711125039426,-501.99497031,0.00027145,2]
[320060772,1711125039436,-1839.09,0.00027145,2]
[320060773,1711125039446,-500.0,0.00027145,2]
[320060774,1711125039459,-500.0,0.00027145,2]
[320060775,1711125039468,-500.0,0.00027145,2]
[320060776,1711125039478,-500.0,0.00027145,2]
[320060777,1711125039494,-500.0,0.00027145,2]
[320060778,1711125039505,-500.0,0.00027145,2]
[320060779,1711125039515,-500.0,0.00027145,2]
[320060780,1711125039525,-500.0,0.00027145,2]
[320060781,1711125039537,-500.0,0.00027145,2]
[320060782,1711125039548,-500.0,0.00027145,2]
[320060783,1711125039558,-500.0,0.00027145,2]
[320060784,1711125039568,-500.0,0.00027145,2]
[320060785,1711125039578,-500.0,0.00027145,2]
[320060786,1711125039587,-500.0,0.00027145,2]
[320060787,1711125039597,-500.0,0.00027145,2]
[320060788,1711125039607,-500.0,0.00027145,2]
[320060789,1711125039617,-500.0,0.00027145,2]
[320060790,1711125039627,-500.0,0.00027145,2]
[320060791,1711125039637,-500.0,0.00027145,2]
[320060792,1711125039647,-12230.95424988,0.00027145,2]
[320060815,1711125043243,-9743.61575012,0.00027145,2]
[320060816,1711125043254,-500.0,0.00027145,2]
[320060818,1711125043267,-603.25250735,0.00027166,2]
[320060819,1711125043277,-603.25250735,0.0002721,2]
[320060820,1711125043287,-6516.56780688,0.00027222,2]
[320060821,1711125043297,-603.25250735,0.00027253,2]
[320060822,1711125043307,-603.25250735,0.00027297,2]
[320060824,1711125043317,-500.0,0.00027395,2]
[320060825,1711125043328,-500.0,0.00027395,2]
[320060826,1711125043337,-31731.27589186,0.00027396,2]
[320060827,1711125043346,-309.72125397,0.00027396,2]
[320060829,1711125043356,-500.0,0.00027396,2]
[320060831,1711125043367,-500.0,0.00027396,2]
[320060832,1711125043376,-500.0,0.00027396,2]
[320060833,1711125043385,-500.0,0.00027396,2]
[320060834,1711125043394,-500.0,0.00027396,2]
[320060835,1711125043403,-500.0,0.00027396,2]
[320060836,1711125043410,-500.0,0.00027396,2]
[320060837,1711125043419,-500.0,0.00027396,2]
[320060838,1711125043429,-500.0,0.00027396,2]
[320060839,1711125043439,-500.0,0.00027396,2]
[320060840,1711125043449,-500.0,0.00027397,2]
[320060841,1711125043458,-500.0,0.00027397,2]
[320060842,1711125043469,-741.08,0.00027397,2]
[320060843,1711125043480,-841.86,0.00027397,2]
[320060844,1711125043496,-500.0,0.00027397,2]
[320060845,1711125043505,-500.0,0.00027397,2]
[320060846,1711125043515,-500.0,0.00027397,2]
[320060847,1711125043524,-500.0,0.00027397,2]
[320060848,1711125043534,-500.0,0.00027397,2]
[320060849,1711125043543,-500.0,0.00027397,2]
[320060850,1711125043552,-500.0,0.00027397,2]
[320060851,1711125043562,-501.85256439,0.00027397,2]
[320060852,1711125043572,-500.0,0.00027397,2]
[320060853,1711125043582,-1587.81,0.00027397,2]
[320060854,1711125043591,-500.0,0.00027397,2]
[320060855,1711125043600,-500.0,0.00027397,2]
[320060856,1711125043610,-500.0,0.00027397,2]
[320060857,1711125043619,-500.0,0.00027397,2]
[320060858,1711125043629,-500.0,0.00027397,2]
[320060859,1711125043638,-500.0,0.00027397,2]
[320060860,1711125043646,-500.0,0.00027397,2]
[320060861,1711125043653,-626.60944168,0.00027397,2]
[320060862,1711125043659,-500.0,0.00027397,2]
[320060863,1711125043667,-500.0,0.00027397,2]
[320060864,1711125043676,-500.0,0.00027397,2]
[320060865,1711125043684,-500.0,0.00027397,2]
[320060866,1711125043693,-500.0,0.00027397,2]
[320060867,1711125043703,-500.0,0.00027397,2]
[320060868,1711125043712,-500.0,0.00027397,2]
[320060869,1711125043722,-500.0,0.00027397,2]
[320060870,1711125043731,-500.0,0.00027397,2]
[320060871,1711125043746,-500.0,0.00027397,2]
[320060872,1711125043757,-500.0,0.00027397,2]
[320060873,1711125043766,-1000.0,0.00027397,2]
[320060874,1711125043775,-500.0,0.00027397,2]
[320060875,1711125043784,-755.08,0.00027397,2]
[320060876,1711125043794,-500.0,0.00027397,2]
[320060877,1711125043803,-232.51884084,0.00027397,2]
[320060878,1711125043813,-500.0,0.00027397,2]
[320060879,1711125043822,-500.0,0.00027397,2]
[320060880,1711125043832,-500.0,0.00027397,2]
[320060881,1711125043841,-500.0,0.00027397,2]
[320060882,1711125043851,-500.0,0.00027397,2]
[320060883,1711125043860,-154.87609912,0.00027397,2]
[320060884,1711125043870,-500.0,0.00027397,2]
[320060885,1711125043880,-500.0,0.00027397,2]
[320060886,1711125043889,-500.0,0.00027397,2]
[320060887,1711125043899,-500.0,0.00027397,2]
[320060888,1711125043908,-500.0,0.00027397,2]
[320060889,1711125043917,-500.0,0.00027397,2]
[320060890,1711125043927,-500.0,0.00027397,2]
[320060891,1711125043937,-500.0,0.00027397,2]
[320060892,1711125043946,-500.0,0.00027397,2]
[320060893,1711125043955,-500.0,0.00027397,2]
[320060894,1711125043965,-500.0,0.00027397,2]
[320060895,1711125043974,-500.0,0.00027397,2]
[320060896,1711125043986,-500.0,0.00027397,2]
[320060897,1711125043998,-500.0,0.00027397,2]
[320060898,1711125044007,-500.0,0.00027397,2]
[320060899,1711125044016,-500.0,0.00027397,2]
[320060900,1711125044026,-500.0,0.00027397,2]
[320060901,1711125044035,-500.0,0.00027397,2]
[320060902,1711125044044,-500.0,0.00027397,2]
[320060903,1711125044054,-500.0,0.00027397,2]
[320060904,1711125044063,-500.0,0.00027397,2]
[320060905,1711125044073,-500.0,0.00027397,2]
[320060906,1711125044082,-500.0,0.00027397,2]
[320060907,1711125044091,-500.0,0.00027397,2]
[320060908,1711125044100,-500.0,0.00027397,2]
[320060909,1711125044109,-502.34938608,0.00027397,2]
[320060910,1711125044119,-500.0,0.00027397,2]
[320060911,1711125044128,-667.69,0.00027397,2]
[320060912,1711125044138,-500.0,0.00027397,2]
[320060913,1711125044148,-500.0,0.00027397,2]
[320060914,1711125044157,-500.0,0.00027397,2]
[320060915,1711125044167,-500.0,0.00027397,2]
[320060916,1711125044176,-531.4265579,0.00027397,2]
[320060917,1711125044186,-294.47,0.00027397,2]
[320060918,1711125044195,-500.0,0.00027397,2]
[320060919,1711125044206,-500.0,0.00027397,2]
[320060920,1711125044216,-500.0,0.00027397,2]
[320060921,1711125044226,-500.0,0.00027397,2]
[320060922,1711125044239,-1239.93,0.00027397,2]
[320060923,1711125044250,-500.62140895,0.00027397,2]
[320060924,1711125044260,-1625.78,0.00027397,2]
[320060925,1711125044270,-500.0,0.00027397,2]
[320060926,1711125044281,-500.0,0.00027397,2]
[320060927,1711125044416,-500.0,0.00027397,2]
[320060928,1711125044426,-500.0,0.00027397,2]
[320060929,1711125044436,-594.2940873,0.00027397,2]
[320060930,1711125044445,-500.0,0.00027397,2]
[320060931,1711125044456,-500.0,0.00027397,2]
[320060932,1711125044465,-500.0,0.00027397,2]
[320060933,1711125044474,-500.0,0.00027397,2]
[320060934,1711125044489,-427.49478328,0.00027397,2]
[320060935,1711125044501,-500.0,0.00027397,2]
[320060936,1711125044510,-500.0,0.00027397,2]
[320060937,1711125044521,-500.0,0.00027397,2]
[320060938,1711125044530,-500.0,0.00027397,2]
[320060939,1711125044541,-500.0,0.00027397,2]
[320060940,1711125044551,-500.0,0.00027397,2]
[320060941,1711125044562,-500.0,0.00027397,2]
[320060942,1711125044572,-500.0,0.00027397,2]
[320060943,1711125044582,-370.02171051,0.00027397,2]
[320060944,1711125044592,-500.0,0.00027397,2]
[320060945,1711125044602,-500.0,0.00027397,2]
[320060946,1711125044611,-500.0,0.00027397,2]
[320060947,1711125044621,-500.0,0.00027397,2]
[320060948,1711125044631,-500.0,0.00027397,2]
[320060949,1711125044641,-170.84898044,0.00027397,2]
[320060950,1711125044650,-1000.0,0.00027397,2]
[320060951,1711125044660,-500.0,0.00027397,2]
[320060952,1711125044669,-500.0,0.00027397,2]
[320060953,1711125044679,-500.0,0.00027397,2]
[320060954,1711125044688,-500.0,0.00027397,2]
[320060955,1711125044697,-500.0,0.00027397,2]
[320060956,1711125044707,-525.92,0.00027397,2]
[320060957,1711125044716,-799.96,0.00027397,2]
[320060958,1711125044726,-500.0,0.00027397,2]
[320060959,1711125044739,-500.0,0.00027397,2]
[320060960,1711125044749,-589.8,0.00027397,2]
[320060961,1711125044758,-500.0,0.00027397,2]
[320060962,1711125044768,-500.0,0.00027397,2]
[320060963,1711125044778,-500.0,0.00027397,2]
[320060964,1711125044787,-500.0,0.00027397,2]
[320060965,1711125044797,-860.45,0.00027397,2]
[320060966,1711125044807,-500.0,0.00027397,2]
[320060967,1711125044816,-500.0,0.00027397,2]
[320060968,1711125044826,-674.29,0.00027397,2]
[320060969,1711125044835,-500.0,0.00027397,2]
[320060970,1711125044844,-500.0,0.00027397,2]
[320060971,1711125044854,-500.0,0.00027397,2]
[320060972,1711125044864,-500.0,0.00027397,2]
[320060973,1711125044872,-500.0,0.00027397,2]
[320060974,1711125044881,-500.0,0.00027397,2]
[320060975,1711125044891,-1017.21,0.00027397,2]
[320060976,1711125044900,-155.47423784,0.00027397,2]
[320060977,1711125044909,-500.0,0.00027397,2]
[320060978,1711125044919,-875.26,0.00027397,2]
[320060979,1711125044928,-500.0,0.00027397,2]
[320060980,1711125044938,-2144.32,0.00027397,2]
[320060981,1711125044947,-500.0,0.00027397,2]
[320060982,1711125044957,-500.0,0.00027397,2]
[320060983,1711125044966,-500.85141942,0.00027397,2]
[320060984,1711125044974,-602.44,0.00027397,2]
[320060985,1711125044981,-500.0,0.00027397,2]
[320060986,1711125044995,-500.0,0.00027397,2]
[320060987,1711125045004,-500.0,0.00027397,2]
[320060988,1711125045015,-500.0,0.00027397,2]
[320060989,1711125045026,-500.0,0.00027397,2]
[320060990,1711125045037,-500.0,0.00027397,2]
[320060991,1711125045047,-1042.61,0.00027397,2]
[320060992,1711125045057,-261.36262508,0.00027397,2]
[320060993,1711125045067,-549.51,0.00027397,2]
[320060994,1711125045077,-500.0,0.00027397,2]
[320060995,1711125045087,-192.7722209,0.00027397,2]
[320060996,1711125045097,-500.0,0.00027397,2]
[320060997,1711125045108,-2984.93,0.00027397,2]
[320060998,1711125045119,-500.0,0.00027397,2]
[320060999,1711125045129,-500.0,0.00027397,2]
[320061000,1711125045139,-500.0,0.00027397,2]
[320061001,1711125045149,-500.0,0.00027397,2]
[320061002,1711125045160,-500.0,0.00027397,2]
[320061003,1711125045170,-500.0,0.00027397,2]
[320061004,1711125045182,-500.0,0.00027397,2]
[320061005,1711125045193,-500.0,0.00027397,2]
[320061006,1711125045204,-500.0,0.00027397,2]
[320061007,1711125045214,-1481.55,0.00027397,2]
[320061008,1711125045223,-248.29937857,0.00027397,2]
[320061009,1711125045234,-500.0,0.00027397,2]
[320061010,1711125045251,-500.0,0.00027397,2]
[320061011,1711125045262,-500.0,0.00027397,2]
[320061012,1711125045274,-1523.83,0.00027397,2]
[320061013,1711125045284,-500.0,0.00027397,2]
[320061014,1711125045295,-500.0,0.00027397,2]
[320061015,1711125045306,-500.0,0.00027397,2]
[320061016,1711125045316,-588.80356667,0.00027397,2]
[320061017,1711125045325,-500.0,0.00027397,2]
[320061018,1711125045335,-500.0,0.00027397,2]
[320061019,1711125045345,-500.0,0.00027397,2]
[320061020,1711125045354,-500.0,0.00027397,2]
[320061021,1711125045365,-500.0,0.00027397,2]
[320061022,1711125045374,-500.0,0.00027397,2]
[320061023,1711125045383,-236.64260937,0.00027397,2]
[320061024,1711125045392,-500.0,0.00027397,2]
[320061025,1711125045401,-500.0,0.00027397,2]
[320061026,1711125045410,-500.0,0.00027397,2]
[320061027,1711125045419,-500.0,0.00027397,2]
[320061028,1711125045428,-500.0,0.00027397,2]
[320061029,1711125045437,-500.0,0.00027397,2]
[320061030,1711125045447,-500.0,0.00027397,2]
[320061031,1711125045459,-244.70375022,0.00027397,2]
[320061032,1711125045468,-500.0,0.00027397,2]
[320061033,1711125045477,-500.0,0.00027397,2]
[320061034,1711125045495,-500.0,0.00027397,2]
[320061035,1711125045505,-500.0,0.00027397,2]
[320061036,1711125045514,-500.0,0.00027397,2]
[320061037,1711125045524,-588.80356667,0.00027397,2]
[320061038,1711125045534,-1955.24,0.00027397,2]
[320061039,1711125045544,-500.0,0.00027397,2]
[320061040,1711125045554,-588.80356667,0.00027397,2]
[320061041,1711125045564,-1919.08920181,0.00027397,2]
[320061042,1711125045574,-1919.08920181,0.00027397,2]
[320061043,1711125045583,-1919.08920181,0.00027397,2]
[320061044,1711125045593,-1919.08920181,0.00027397,2]
[320061045,1711125045602,-1919.08920181,0.00027397,2]
[320061046,1711125045612,-1919.08920181,0.00027397,2]
[320061047,1711125045621,-1919.08920181,0.00027397,2]
[320061049,1711125045630,-1919.08920181,0.00027397,2]
[320061051,1711125045639,-1919.08920181,0.00027397,2]
[320061053,1711125045649,-1919.08920181,0.00027397,2]
[320061055,1711125045659,-1919.08920181,0.00027397,2]
[320061057,1711125045668,-1919.08920181,0.00027397,2]
[320061059,1711125045677,-1919.08920181,0.00027397,2]
[320061060,1711125045687,-1919.08920181,0.00027397,2]
[320061062,1711125045697,-1919.08920181,0.00027397,2]
[320061063,1711125045706,-1919.08920181,0.00027397,2]
[320061064,1711125045715,-1919.08920181,0.00027397,2]
[320061065,1711125045725,-1919.08920181,0.00027397,2]
[320061066,1711125045734,-1919.08920181,0.00027397,2]
[320061067,1711125045747,-1919.08920181,0.00027397,2]
[320061068,1711125045757,-1919.08920181,0.00027397,2]
[320061069,1711125045766,-1919.08920181,0.00027397,2]
[320061070,1711125045776,-1919.08920181,0.00027397,2]
[320061072,1711125045786,-1919.08920181,0.00027397,2]
[320061074,1711125045795,-1919.08920181,0.00027397,2]
[320061076,1711125045805,-1919.08920181,0.00027397,2]
[320061078,1711125045813,-1919.08920181,0.00027397,2]
[320061080,1711125045822,-1919.08920181,0.00027397,2]
[320061082,1711125045831,-1919.08920181,0.00027397,2]
[320061084,1711125045840,-1919.08920181,0.00027397,2]
[320061085,1711125045849,-1919.08920181,0.00027397,2]
[320061087,1711125045859,-1919.08920181,0.00027397,2]
[320061089,1711125045868,-1919.08920181,0.00027397,2]
[320061091,1711125045878,-1919.08920181,0.00027397,2]
[320061093,1711125045887,-1919.08920181,0.00027397,2]
[320061096,1711125045897,-1919.08920181,0.00027397,2]
[320061097,1711125045906,-1919.08920181,0.00027397,2]
[320061100,1711125045915,-1919.08920181,0.00027397,2]
[320061103,1711125045924,-1919.08920181,0.00027397,2]
[320061105,1711125045934,-1919.08920181,0.00027397,2]
[320061107,1711125045943,-1919.08920181,0.00027397,2]
[320061109,1711125045952,-1919.08920181,0.00027397,2]
[320061111,1711125045962,-1919.08920181,0.00027397,2]
[320061113,1711125045971,-1919.08920181,0.00027397,2]
[320061116,1711125045980,-1919.08920181,0.00027397,2]
[320061119,1711125045993,-1919.08920181,0.00027397,2]
[320061121,1711125046002,-1919.08920181,0.00027397,2]
[320061123,1711125046012,-1919.08920181,0.00027397,2]
[320061125,1711125046022,-166.666666,0.00027397,2]
[320061127,1711125046031,-796.41698053,0.000275,17]
[320061129,1711125046041,-321.85747366,0.00027592,2]
[320061130,1711125046050,-500.0,0.00027593,2]
[320061133,1711125046060,-500.0,0.00027593,2]
[320061134,1711125046070,-5407.52,0.00027593,2]
[320061136,1711125046080,-500.0,0.00027593,2]
[320061138,1711125046089,-500.0,0.00027593,2]
[320061140,1711125046099,-2849.09,0.00027593,2]
[320061142,1711125046109,-590.33,0.00027593,2]
[320061144,1711125046118,-500.0,0.00027593,2]
[320061147,1711125046128,-500.0,0.00027593,2]
[320061149,1711125046137,-644.12,0.00027593,2]
[320061151,1711125046147,-1278.79,0.00027593,2]
[320061153,1711125046157,-541.47369839,0.00027593,2]
[320061165,1711125046548,-259.35025559,0.00025297,2]
[320061166,1711125046558,-500.0,0.00027045,2]
[320061167,1711125046567,-500.0,0.00027145,2]
[320061168,1711125046576,-166.666666,0.00027397,2]
[320061169,1711125046586,-3819.69630161,0.00027593,2]
[320061170,1711125046594,-17428.62,0.00027593,2]
[320061171,1711125046603,-4276.4,0.00027593,2]
[320061172,1711125046612,-1801.15,0.00027593,2]
[320061173,1711125046621,-502.84,0.00027593,2]
[320061174,1711125046631,-1955.24,0.00027593,2]
[320061175,1711125046640,-500.0,0.00027593,2]
[320061176,1711125046649,-1636.0,0.00027593,2]
[320061177,1711125046659,-540.37427772,0.00027593,2]
[320061178,1711125046669,-500.0,0.00027593,2]
[320061179,1711125046678,-500.0,0.00027593,2]
[320061180,1711125046687,-500.0,0.00027593,2]
[320061181,1711125046697,-500.0,0.00027593,2]
[320061182,1711125046706,-500.0,0.00027593,2]
[320061183,1711125046716,-500.0,0.00027593,2]
[320061184,1711125046725,-2244.23,0.00027593,2]
[320061185,1711125046736,-746.5,0.00027593,2]
[320061186,1711125046745,-500.0,0.00027593,2]
[320061187,1711125046754,-1505.4,0.00027593,2]
[320061188,1711125046763,-500.0,0.00027593,2]
[320061189,1711125046772,-2143.18,0.00027593,2]
[320061190,1711125046781,-1038.41,0.00027593,2]
[320061191,1711125046791,-500.0,0.00027593,2]
[320061192,1711125046800,-246.28499172,0.00027593,2]
[320061193,1711125046809,-500.37151895,0.00027593,2]
[320061194,1711125046818,-500.0,0.00027593,2]
[320061195,1711125046827,-709.59,0.00027593,2]
[320061196,1711125046837,-500.0,0.00027593,2]
[320061197,1711125046846,-4210.44,0.00027593,2]
[320061198,1711125046855,-500.0,0.00027593,2]
[320061199,1711125046865,-500.0,0.00027593,2]
[320061200,1711125046874,-500.0,0.00027593,2]
[320061201,1711125046883,-1659.25710767,0.00027593,2]
[320061202,1711125056462,217.31741598,0.0002,2]
[320061215,1711125915709,11551.05104632,0.0002,5]
[320061216,1711125951468,1076.4133695,0.000189,2]
[320061217,1711125951512,4.21269547,0.000189,2]
[320061292,1711126232410,-171.19995,0.00022568,2]
[320061294,1711126232419,-4156.7271798,0.00023517,2]
[320061297,1711126232429,-685.47138469,0.00023557,2]
[320061300,1711126232438,-1609.81087072,0.00023557,2]
[320061301,1711126232448,-337.3610181,0.00023558,2]
[320061302,1711126232457,-8075.4479,0.00023558,2]
[320061303,1711126232466,-24900.0,0.0002356,2]
[320061305,1711126232476,-2390.6306311,0.0002377,2]
[320061307,1711126232485,-1080.62606497,0.000239,2]
[320061309,1711126232494,-217.415588,0.00023978,2]
[320061312,1711126232504,-11155.78313087,0.00024,2]
[320061315,1711126232513,-165.628719,0.00024112,2]
[320061317,1711126232522,-664.868911,0.00024323,2]
[320061320,1711126232531,-500.0,0.00024737,2]
[320061322,1711126232540,-500.0,0.00024737,2]
[320061325,1711126232550,-2000.0,0.00024902,2]
[320061327,1711126232559,-217.415588,0.00024939,2]
[320061328,1711126232568,-3206.46735,0.00024971,2]
[320061330,1711126232577,-2000.0,0.000255,30]
[320061333,1711126232587,-2000.0,0.0002551,30]
[320061335,1711126232597,-2000.0,0.0002552,30]
[320061337,1711126232606,-2000.0,0.0002553,30]
[320061338,1711126232615,-2000.0,0.0002554,30]
[320061339,1711126232624,-361.75074052,0.00025549,2]
[320061340,1711126232634,-500.0,0.00025549,2]
[320061341,1711126232644,-173.42824842,0.00025549,2]
[320061342,1711126232653,-2000.0,0.0002555,30]
[320061343,1711126232665,-2537.319195,0.0002556,30]
[320061344,1711126232674,-164.497557,0.00025611,2]
[320061345,1711126232684,-1242.82458256,0.0002562,2]
[320061346,1711126232693,-262.99728441,0.00025718,7]
[320061347,1711126232702,-304.78785734,0.00025718,2]
[320061348,1711126232710,-205.13492374,0.00025718,2]
[320061349,1711126232720,-500.0,0.00025719,2]
[320061350,1711126232728,-500.0,0.00025719,2]
[320061351,1711126232737,-618.80697838,0.00025719,2]
[320061352,1711126232746,-500.0,0.00025719,2]
[320061353,1711126232755,-2897.39,0.00025719,2]
[320061354,1711126232764,-1297.86,0.00025719,2]
[320061355,1711126232773,-4098.22,0.00025719,2]
[320061356,1711126232782,-1821.56,0.00025719,2]
[320061357,1711126232790,-767.53,0.00025719,2]
[320061358,1711126232799,-500.0,0.00025719,2]
[320061359,1711126232808,-752.62,0.00025719,2]
[320061360,1711126232817,-622.0458634,0.00025719,2]
[320061361,1711126232826,-500.0,0.00025719,2]
[320061362,1711126232835,-18323.26,0.00025719,2]
[320061363,1711126232845,-500.0,0.00025719,2]
[320061364,1711126232855,-500.0,0.00025719,2]
[320061365,1711126232867,-1503.2,0.00025719,2]
[320061366,1711126232876,-500.0,0.00025719,2]
[320061367,1711126232885,-500.0,0.00025719,2]
[320061368,1711126232892,-501.60077712,0.00025719,2]
[320061369,1711126232899,-715.4,0.00025719,2]
[320061370,1711126232906,-1042.11,0.00025719,2]
[320061371,1711126232916,-4039.86,0.00025719,2]
[320061372,1711126232925,-31885.45,0.00025719,2]
[320061373,1711126232936,-500.0,0.00025719,2]
[320061374,1711126232946,-1569.54,0.00025719,2]
[320061375,1711126232955,-500.0,0.00025719,2]
[320061376,1711126232964,-7630.58,0.00025719,2]
[320061377,1711126232973,-151.80276999,0.00025719,2]
[320061378,1711126232983,-151.80276999,0.00025719,2]
[320061379,1711126232992,-43901.74323375,0.0002572,30]
[320061380,1711126233005,-1776.06013823,0.0002572,30]
[320061396,1711126238350,-337.3610181,0.00022567,2]
[320061397,1711126238369,-500.0,0.00025719,2]
[320061398,1711126238383,-16241.77011188,0.0002572,30]
[320061399,1711126238394,-1242.82458254,0.00025827,2]
[320061400,1711126238403,-217.415588,0.00025899,2]
[320061401,1711126238416,-232.99241824,0.00025998,2]
[320061402,1711126238426,-783.57894867,0.00025998,2]
[320061403,1711126238436,-615.37638664,0.00025998,2]
[320061404,1711126238445,-5079.88695154,0.00025998,2]
[320061405,1711126238456,-281.46635872,0.00025998,2]
[320061406,1711126238466,-1002.01344713,0.00025999,2]
[320061407,1711126238476,-300.52228676,0.00025999,2]
[320061408,1711126238488,-309.75219824,0.00025999,2]
[320061409,1711126238497,-500.0,0.00025999,2]
[320061410,1711126238507,-500.0,0.00025999,2]
[320061411,1711126238517,-500.0,0.00025999,2]
[320061412,1711126238527,-500.0,0.00025999,2]
[320061413,1711126238537,-195.25597614,0.00025999,2]
[320061415,1711126238547,-500.0,0.00025999,2]
[320061418,1711126238557,-554.56,0.00025999,2]
[320061419,1711126238567,-500.0,0.00025999,2]
[320061421,1711126238577,-500.0,0.00025999,2]
[320061423,1711126238587,-500.0,0.00025999,2]
[320061424,1711126238597,-500.0,0.00025999,2]
[320061425,1711126238607,-500.0,0.00025999,2]
[320061426,1711126238617,-511.87,0.00025999,2]
[320061427,1711126238626,-1597.39,0.00025999,2]
[320061428,1711126238637,-500.0,0.00025999,2]